Workbook

Sheet Angolari
B1: =VLOOKUP(A6,PRZ,5,FALSE) -> Applicazione di profilo per finestre 3D per sistema di isolamento a cappotto
A5: Tipologia di angolare
A6: Profilo per Finestre 3D
A8: =_xlfn.CONCAT('Unità misura e prezzi'!$G$4,VLOOKUP(Angolari!A6,PRZ,7,FALSE),'Unità misura e prezzi'!I4,'Unità misura e prezzi'!J4) -> Fornitura e posa in opera di profilo in pvc con nastro autoadesivo e rete in fibra di vetro per il collegamento tra i sistemi termocoibenti e i serramenti - tipo Profilo per Finestre 3D di Kerakoll. Il prezzo è per metro lineare effettivamente posto in opera. E' altresì compresa la fornitura e posa in opera di tutti i materiali sopra descritti e quanto altro occorre per dare il lavoro finito. Sono esclusi: il materiale per la rasatura, le indagini pre e post intervento; tutti i sussidi necessari per l'esecuzione dei lavori ricadenti all'interno dei costi della sicurezza indiretti.
A14: DESCRIZIONE | D14: U.M. | E14: QUANTITA' | F14: PREZZO UNITARIO* | G14: PREZZO COMPLETO
A15: RISORSE UMANE (RU)
A16: Applicazione dell'accessorio | I16: OPERAIO QUALIFICATO (MO1003) | L16: =INDEX(lavorazioni_secondostrato,(VLOOKUP($B$1,lavorazioni_secondostrato,2,FALSE)+1),3) -> 
A17: =IF(A16=0,"",$I$16) -> OPERAIO QUALIFICATO (MO1003) | D17: =IFERROR(VLOOKUP(A17,PRZ,2,FALSE),"") -> H/mq | E17: 0.02 | F17: =IFERROR(VLOOKUP(A17,PRZ,3,FALSE),"") -> 29.25 | G17: =IFERROR(E17*F17,"") -> 0.585 | L17: =IF(L16=0,"",$I$16) ->  | O17: =IFERROR(VLOOKUP(L17,prezzi,2,FALSE),"") ->  | P17: =IF(L17=$I$16,VLOOKUP(L16,#REF!,2,FALSE),IF(L17=$I$17,VLOOKUP(L15,#REF!,2,FALSE),"")) ->  | Q17: =IFERROR(VLOOKUP(L17,prezzi,3,FALSE),"") ->  | R17: =IFERROR(P17*Q17,"") -> 
D18: =IFERROR(VLOOKUP(A18,prezzi,2,FALSE),"") ->  | E18: =IF(A18=$I$16,VLOOKUP(#REF!,QTA,2,FALSE),"") ->  | F18: sommano RU | G18: =SUM(G17:G17) -> 0.585 | P18: =IF(L18=$I$16,VLOOKUP(#REF!,#REF!,2,FALSE),IF(L18=$I$17,VLOOKUP(#REF!,#REF!,2,FALSE),"")) ->  | Q18: sommano RU | R18: =SUM(R17:R17) -> 0
A19: PRODOTTI DA COSTRUZIONE (PR) | D19: =IFERROR(VLOOKUP(A19,prezzi,2,FALSE),"") -> 
A20: =A6 -> Profilo per Finestre 3D | D20: m/m | E20: 1 | F20: =IFERROR(VLOOKUP(A20,PRZ,3,FALSE),"") -> 7.48 | G20: =IFERROR(F20*E20,"") -> 7.48
F21: sommano PR | G21: =SUM(G20:G20) -> 7.48
A22: ATTREZZATURE (AT)
A23: NOLO DI STRUMENTAZIONE DA CANTIERE | D23: H/m | E23: 0.01 | F23: 8 | G23: =F23*E23 -> 0.08
A24: TRASPORTO MATERIALI DI CONSUMO | D24: kg/m | E24: =0.2 -> 0.2 | F24: =0.02 -> 0.02 | G24: =F24*E24 -> 0.004
F25: sommano AT | G25: =SUM(G23:G24) -> 0.084
F26: Costo Tecnico (CT) | G26: =SUM(G25,G21,G18) -> 8.149
F27: Costo indiretto (SG) 17,00% | G27: =G26*0.17 -> 1.38533
F28: Costo figurativo (U) 10,00% | G28: =(G26+G27)*0.1 -> 0.953433
A29: * Prezzi materiali Kerakoll = Listino 07-2025. Prezzi manodopera = Prezziario DEI (I Semestre 2025) - Media Nazionale.
B30: RU+PR+AT+SG+U | D30: PREZZO COMPLESSIVO AL METRO | G30: =G26+G27+G28 -> 10.487763
A32: Voce di capitolato
A33: =_xlfn.CONCAT('Unità misura e prezzi'!$G$4,VLOOKUP(Angolari!A6,PRZ,7,FALSE),'Unità misura e prezzi'!I4,'Unità misura e prezzi'!K4,VLOOKUP(Angolari!A6,PRZ,11,FALSE),'Unità misura e prezzi'!M4) -> Fornitura e posa in opera di profilo in pvc con nastro autoadesivo e rete in fibra di vetro per il collegamento tra i sistemi termocoibenti e i serramenti - tipo Profilo per Finestre 3D di Kerakoll. L'intervento si svolge nelle seguenti fasi: a) Applicare il rasante (da contabilizzare a parte) e annegare le retine di collegamento. La valutazione è espressa per metro lineare di profilo effettivamente posto in opera.

Sheet Unità misura e prezzi (hidden)
B2: Prodotto | C2: UM | D2: Prezzo | E2: Descrizione | F2: Titolo tavola
B3: OPERAIO QUALIFICATO (MO1003) | C3: H/mq | D3: 29.25
B4: Angolare PVC - 80x120x2500 mm | C4: m/m | D4: 1.334 | E4: Angolare rigido lineare in PVC per il rinforzo di spigoli con rete di collegamento ai sistemi termocoibenti | F4: Applicazione di angolare in PVC per rinforzo di spigoli per sistema di isolamento a cappotto | G4: Fornitura e posa in opera di | H4: =_xlfn.CONCAT(LOWER(E4)," - tipo ",B4) -> angolare rigido lineare in pvc per il rinforzo di spigoli con rete di collegamento ai sistemi termocoibenti - tipo Angolare PVC - 80x120x2500 mm | I4: di Kerakoll. | J4: Il prezzo è per metro lineare effettivamente posto in opera. E' altresì compresa la fornitura e posa in opera di tutti i materiali sopra descritti e quanto altro occorre per dare il lavoro finito. Sono esclusi: il materiale per la rasatura, le indagini pre e post intervento; tutti i sussidi necessari per l'esecuzione dei lavori ricadenti all'interno dei costi della sicurezza indiretti. | K4: L'intervento si svolge nelle seguenti fasi: a) Applicare il rasante (da contabilizzare a parte) e annegare le retine di collegamento. La valutazione è espressa per metro lineare di | L4: angolare | M4: effettivamente posto in opera.
B5: Angolare PVC - 100x150x2500 mm | C5: m/m | D5: 1.502 | E5: Angolare rigido lineare in PVC per il rinforzo di spigoli con rete di collegamento ai sistemi termocoibenti | F5: Applicazione di angolare in PVC per rinforzo di spigoli per sistema di isolamento a cappotto | H5: =_xlfn.CONCAT(LOWER(E5)," - tipo ",B5) -> angolare rigido lineare in pvc per il rinforzo di spigoli con rete di collegamento ai sistemi termocoibenti - tipo Angolare PVC - 100x150x2500 mm | L5: angolare
B6: Angolare Alluminio - 80x120x2500 mm | C6: m/m | D6: 1.436 | E6: Angolare rigido lineare in alluminio per il rinforzo di spigoli con rete di collegamento ai sistemi termocoibenti | F6: Applicazione di angolare in alluminio per rinforzo di spigoli per sistema di isolamento a cappotto | H6: angolare rigido lineare in alluminio per il rinforzo di spigoli con rete di collegamento ai sistemi termocoibenti - tipo Angolare Alluminio - 80x120x2500 mm | L6: angolare
B7: Angolare PVC a Vista | C7: m/m | D7: 2.832 | E7: Angolare rigido lineare in PVC con guida esterna sporgente per il rinforzo di spigoli con rete di collegamento ai sistemi termocoibenti | F7: Applicazione di angolare in PVC per rinforzo di spigoli per sistema di isolamento a cappotto | H7: =_xlfn.CONCAT(LOWER(E7)," - tipo ",B7) -> angolare rigido lineare in pvc con guida esterna sporgente per il rinforzo di spigoli con rete di collegamento ai sistemi termocoibenti - tipo Angolare PVC a Vista | L7: angolare
B8: Angolare Universale | C8: m/m | D8: 2.312 | E8: Angolare modellabile in PVC per il rinforzo di spigoli con rete di collegamento ai sistemi termocoibenti | F8: Applicazione di angolare in PVC per rinforzo di spigoli per sistema di isolamento a cappotto | H8: angolare modellabile in pvc per il rinforzo di spigoli con rete di collegamento ai sistemi termocoibenti - tipo Angolare Universale | L8: angolare
B9: Angolare PVC per Arco | C9: m/m | D9: 3.712 | E9: Angolare in PVC specifico per il rinforzo di spigoli di superfici curve con rete di collegamento ai sistemi termocoibenti | F9: Applicazione di angolare in PVC per arco per sistema di isolamento a cappotto | H9: angolare in pvc specifico per il rinforzo di spigoli di superfici curve con rete di collegamento ai sistemi termocoibenti - tipo Angolare PVC per Arco | L9: angolare
B10: Rompigoccia Invisibile | C10: m/m | D10: 4.41 | E10: Rompigoccia in PVC sovraverniciabile con rete in fibra di vetro e gocciolatoio per il collegamento ai sistemi termocoibenti | F10: Applicazione di rompigoccia in PVC rompigoccia invisibile per sistema di isolamento a cappotto | H10: rompigoccia in pvc sovraverniciabile con rete in fibra di vetro e gocciolatoio per il collegamento ai sistemi termocoibenti - tipo Rompigoccia Invisibile | L10: rompigoccia
B11: Rompigoccia a Vista con Bandella Strip | C11: m/m | D11: 2.194 | E11: Rompigoccia in PVC con rete in fibra di vetro e gocciolatoio per il collegamento ai sistemi termocoibenti | F11: Applicazione di rompigoccia in PVC rompigoccia a vista per sistema di isolamento a cappotto | H11: rompigoccia in pvc con rete in fibra di vetro e gocciolatoio per il collegamento ai sistemi termocoibenti - tipo Rompigoccia a Vista con Bandella Strip | L11: rompigoccia
B12: Profilo per Finestre 3D | C12: m/m | D12: 7.48 | E12: Profilo in PVC con nastro autoadesivo e rete in fibra di vetro per il collegamento tra i sistemi termocoibenti e i serramenti | F12: Applicazione di profilo per finestre 3D per sistema di isolamento a cappotto | H12: profilo in pvc con nastro autoadesivo e rete in fibra di vetro per il collegamento tra i sistemi termocoibenti e i serramenti - tipo Profilo per Finestre 3D | L12: profilo
B13: Profilo per Davanzale | C13: m/m | D13: 6.184 | E13: Profilo in PVC con nastro autoadesivo e rete in fibra di vetro per la sigillatura impermeabile dei collegamenti tra i sistemi termocoibenti e i serramenti | F13: Applicazione di profilo per davanzale per sistema di isolamento a cappotto | H13: profilo in pvc con nastro autoadesivo e rete in fibra di vetro per la sigillatura impermeabile dei collegamenti tra i sistemi termocoibenti e i serramenti - tipo Profilo per Davanzale | L13: profilo
B14: Rete Preformata per Scanalature a Triangolo | C14: m/m | D14: 4.334 | E14: Rete preformata in fibra di vetro resistente agli alcali per la continuità dello strato di rasatura armata su lesene e scanalature a triangolo | F14: Applicazione di rete preformata per scanalature a triangolo per sistema di isolamento a cappotto | H14: rete preformata in fibra di vetro resistente agli alcali per la continuità dello strato di rasatura armata su lesene e scanalature a triangolo - tipo Rete Preformata per Scanalature a Triangolo | L14: rete preformata
B15: Rete Preformata per Scanalature a Trapezio | C15: m/m | D15: 4.334 | E15: Rete preformata in fibra di vetro resistente agli alcali per la continuità dello strato di rasatura armata su lesene e scanalature a trapezio | F15: Applicazione di rete preformata per scanalature a trapezio per sistema di isolamento a cappotto | H15: rete preformata in fibra di vetro resistente agli alcali per la continuità dello strato di rasatura armata su lesene e scanalature a trapezio - tipo Rete Preformata per Scanalature a Trapezio | L15: rete preformata
